[Event "SixDays GM March 2024"]
[Site "Budapest"]
[Date "2024.03.30"]
[Round "1.1"]
[White "Mihok, Oliver"]
[Black "Horvath, Adam"]
[Result "1/2-1/2"]
[ECO "B41"]
[WhiteElo "2549"]
[BlackElo "2440"]
[Annotator "TA"]
[PlyCount "61"]
[EventDate "2024.03.26"]
[EventType "tourn"]
[EventCountry "HUN"]
[SourceTitle "playchess.com"]
[Source "ChessBase"]
[SourceQuality "1"]
[TimeControl "5400+30"]

{[%evp 13,61,24,58,40,31,38,54,58,114,34,40,38,42,1,31,16,29,7,10,7,17,0,9,0,4,0,0,-24,-22,-56,-43,-53,-46,-59,-47,-100,-88,-87,-91,-115,-115,-131,-131,-125,-125,-134,-139,-147,-149,-137]} 1. e4 {[%emt 0:00:03]} c5 {[%emt 0:00:09]} 2. Nf3 {[%emt 0:00:05]} e6 {[%emt 0:00:09]} 3. d4 {[%emt 0:00:05]} cxd4 {[%emt 0:00:05]} 4. Nxd4 {[%emt 0:00:03]} a6 {[%emt 0:00:08]} 5. c4 {[%emt 0:00:36]} Nf6 {[%emt 0:00:08]} 6. Nc3 {[%emt 0:00:06]} Qc7 {[%emt 0:00:04]} 7. a3 {[%emt 0:00:17]} b6 {[%emt 0:00:09]} 8. f4 {[%emt 0:02:15]} Bb7 {[%emt 0:02:20]} 9. Bd3 {[%emt 0:00:08]} d6 {[%emt 0:06:14]} 10. O-O {[%emt 0:02:12] White is slightly better.} g6 {[%emt 0:05:49]} (10... Nbd7 $14) 11. Be3 {[%emt 0:08:06] White is more active.} (11. f5 $1 $16 gxf5 12. Bg5 (12. exf5 Rg8 $11)) 11... Bg7 $14 {[%emt 0:11:12]} 12. Rc1 {[%emt 0:00:43]} O-O {[%emt 0:00:16]} 13. g4 {[%emt 0:06:57][%cal Bg2g4,Bg4g5][%mdl 32]} Nbd7 {[%emt 0:15:01]} 14. g5 $1 {[%emt 0:05:34]} Nh5 {[%emt 0:00:04][%cal Oh5f4,Bf6h5,Bh5g7,Bg7e6][%mdl 32]} 15. f5 {[%emt 0:02:43]} (15. Be2 $5) 15... exf5 {[%emt 0:05:19] [#]} 16. Nxf5 {[%emt 0:07:40]} Rae8 {[%emt 0:20:33]} (16... Nc5 17. Nxg7) 17. Nd5 {[%emt 0:02:42]} Qb8 {[%emt 0:00:14]} 18. Nxg7 {[%emt 0:03:51]} (18. Nxb6 $2 Nxb6 19. Nxg7 Nxg7 $19) 18... Nxg7 {[%emt 0:01:35]} 19. Bd4 {[%emt 0:18:36]} (19. Bxb6 $2 Bxd5 20. cxd5 Qxb6+ $19) 19... Ne6 {[%emt 0:03:49][%csl LRd4,LRg5]} 20. Bc3 {[%emt 0:05:20]} (20. Bxb6 $2 Bxd5 (20... Nxg5 21. Be3 $15) 21. Be3 Ba8 $19) (20. Bf6 $5) 20... Bxd5 {[%emt 0:03:43]} 21. exd5 {[%emt 0:04:24]} Nxg5 {[%emt 0:06:31]} 22. Qg4 {[%emt 0:08:04]} Qd8 {[%emt 0:02:32] ...Ne5 would now be deadly.} 23. h4 {[%emt 0:07:56][%cal Od3b1] Black must now prevent Bb1!} Ne5 $1 24. Qxg5 {[%emt 0:00:38]} (24. Bxe5 $15 Rxe5 25. Rce1 (25. hxg5 $2 {perishes.} Rxg5 $19)) 24... Qxg5+ $17 {[%emt 0:03:12]} ({Of course not} 24... Nxd3 $6 25. Bf6 Qc8 26. Qh6 Qg4+ 27. Kh1 Qh3+ 28. Kg1 Qg4+ 29. Kh1 Qe4+ (29... Qh3+ 30. Kg1 $11) 30. Kg1 Qe3+ (30... Qg4+ 31. Kh1 $11) 31. Qxe3 Rxe3 32. Rc3 Rg3+ 33. Kh2 $11) 25. hxg5 {[%emt 0:00:03] Hoping for Rcd1.} Nxd3 {[%emt 0:00:05]} 26. Rcd1 {[%emt 0:00:09] [#]} Nc5 {[%emt 0:03:02]} 27. b4 {[%emt 0:01:30]} Ne4 {[%emt 0:02:11][%csl LRc3,LRg5]} 28. Bf6 {[%emt 0:01:56] [#]} Rc8 $1 {[%emt 0:04:35]} 29. Rd4 {[%emt 0:00:30]} Rfe8 {[%emt 0:00:09]} 30. Kg2 {[%emt 0:02:53] Dodges Ng3} b5 {[%emt 0:00:14]} 31. c5 {[%emt 0:00:32] Weighted Error Value: White=0.16 (very precise) /Black=0.07 (flawless) .  Mistake:       	White=2     	Black=1      Inaccurate:     	White=2     	Black=1      OK:         	White=7     	Black=12     Best:        	White=1     	Black=2      Strong:       	White=1     	Black=2      Brilliant:      	White=1     	---} 1/2-1/2

[Event "SixDays GM March 2024"]
[Site "Budapest"]
[Date "2024.03.30"]
[Round "1.2"]
[White "Grover, Sahaj"]
[Black "Juhasz, Agoston"]
[Result "0-1"]
[ECO "B12"]
[WhiteElo "2514"]
[BlackElo "2406"]
[Annotator "TA"]
[PlyCount "70"]
[EventDate "2024.03.26"]
[EventType "tourn"]
[EventCountry "HUN"]
[SourceTitle "playchess.com"]
[Source "ChessBase"]
[SourceQuality "1"]
[TimeControl "5400+30"]

{[%evp 9,70,9,12,16,12,14,12,12,6,12,8,16,25,4,24,26,22,0,0,0,0,0,0,0,89,69,82,66,60,59,108,108,120,124,126,-147,-143,-160,-152,-362,-372,-560,-542,-550,-553,-561,-560,-640,-558,-531,-530,-531,-535,-661,-654,-686,-675,-692,-652,-850,-908,-908,-845]} 1. e4 {[%emt 0:00:03]} c6 {[%emt 0:00:13]} 2. d4 {[%emt 0:00:06]} d5 {[%emt 0:00:04]} 3. e5 {[%emt 0:00:04]} Bf5 {[%emt 0:00:16]} 4. Nd2 {[%emt 0:00:09]} e6 {[%emt 0:00:20]} 5. Nb3 {[%emt 0:00:05]} a6 {[%emt 0:00:42]} 6. Nf3 {[%emt 0:01:16]} c5 {[%emt 0:00:50]} 7. Nxc5 {[%emt 0:01:13]} Bxc5 {[%emt 0:00:19]} 8. dxc5 {[%emt 0:00:05] The position is equal.} Qa5+ {[%emt 0:00:56]} 9. c3 {[%emt 0:00:08]} Qxc5 {[%emt 0:00:06]} 10. Nd4 {[%emt 0:03:34] aiming for Be3.} Ne7 {[%emt 0:00:42] Black is weak on the dark squares} 11. h4 {[%emt 0:07:05] g4 is the strong threat.} h6 {[%emt 0:05:34]} 12. Nxf5 {[%emt 0:07:39]} Nxf5 {[%emt 0:01:02]} 13. Bd3 {[%emt 0:00:05]} (13. g4 $5 Ne7 $8 14. Be3 $11) 13... d4 {[%emt 0:14:34]} 14. O-O {[%emt 0:05:04]} dxc3 {[%emt 0:07:39]} 15. Qb3 {[%emt 0:11:10]} O-O {[%emt 0:09:31]} 16. bxc3 {[%emt 0:00:51] Hoping for Ba3.} Rc8 {[%emt 0:05:24] [#]} (16... Re8 $11 {keeps the balance.}) 17. Bxf5 $1 $16 {[%emt 0:04:16]} exf5 {[%emt 0:00:11]} 18. e6 {[%emt 0:00:03]} ({Much weaker is} 18. Qxb7 $6 Nc6 $11) 18... Qe7 {[%emt 0:10:42]} 19. Re1 {[%emt 0:00:07] Strongly threatening Ba3.} Nc6 {[%emt 0:04:02]} (19... Nd7 $1 $14) 20. Ba3 {[%emt 0:01:12]} Qc7 {[%emt 0:01:17]} 21. Rad1 {[%emt 0:03:53]} (21. e7 {with more complications.} b5 22. Qd5 Re8 23. Bd6) 21... Rd8 {[%emt 0:03:01] [#] Repels Rd7} 22. Bd6 $2 {[%emt 0:00:28][%mdl 8192]} Rxd6 $17 {[%emt 0:04:11]} 23. exf7+ {[%emt 0:00:05]} Kf8 $1 {[%emt 0:01:47] Threatens to win with ...Rxd1.} 24. Qa3 $2 {[%emt 0:00:12] White does not recover from this.} (24. Re8+ $17 Rxe8 25. fxe8=Q+ Kxe8 26. Qg8+ Kd7 27. Qxg7+ Kc8 28. Qf8+ Rd8 29. Qxf5+ Kb8 30. Rxd8+ Nxd8 31. Qf6) 24... Rad8 $1 $19 {[%emt 0:00:33]} 25. Re6 {[%emt 0:00:13]} (25. Rxd6 {was called for.} Qxd6 26. Qb3) 25... Qa5 $1 {[%emt 0:02:38] Black is clearly winning.} 26. Qxd6+ {[%emt 0:05:52]} Rxd6 {[%emt 0:00:03]} 27. Rexd6 {[%emt 0:00:05]} Ne5 {[%emt 0:04:21] Prevents Rd7} 28. c4 {[%emt 0:08:53]} Kxf7 {[%emt 0:02:35]} 29. R6d5 {[%emt 0:05:58]} Qc3 {[%emt 0:00:32]} ({Stronger than} 29... Qxa2 30. Rxe5 Qxc4 31. Rd7+ Kf6 32. Ree7 $11) 30. c5 {[%emt 0:02:15]} h5 {[%emt 0:02:18]} 31. a4 {[%emt 0:09:53]} Kg6 {[%emt 0:01:53]} 32. Rd6+ {[%emt 0:01:48]} Kh7 {[%emt 0:00:31]} 33. R6d5 {[%emt 0:00:07]} f4 {[%emt 0:01:26] And now ...f3 would win.} 34. a5 {[%emt 0:03:18]} f3 {[%emt 0:03:09]} 35. g3 {[%emt 0:00:04]} Kh6 {[%emt 0:00:32] Weighted Error Value: White=0.51/Black=0.14 (very precise) .  Loses game:     	White=1     	---        Mistake:       	White=2     	Black=2      OK:         	White=11    	Black=8      Best:        	White=2     	Black=2      Strong:       	White=1     	Black=3} 0-1

[Event "SixDays GM March 2024"]
[Site "Budapest"]
[Date "2024.03.30"]
[Round "1.3"]
[White "Orujov, Farid"]
[Black "Pribelszky, Bence"]
[Result "0-1"]
[ECO "B00"]
[WhiteElo "2266"]
[BlackElo "2354"]
[Annotator "RC"]
[PlyCount "102"]
[EventDate "2024.03.26"]
[EventType "tourn"]
[EventCountry "HUN"]
[SourceTitle "playchess.com"]
[Source "ChessBase"]
[SourceQuality "1"]
[TimeControl "5400+30"]

1. e4 {[%emt 0:00:03]} Nc6 {[%emt 0:00:51]} 2. Nf3 {[%emt 0:00:09]} d6 {[%emt 0:00:07]} 3. d4 {[%emt 0:00:11]} Nf6 {[%emt 0:00:07]} 4. Nc3 {[%emt 0:00:13]} Bg4 {[%emt 0:00:09]} 5. Be2 {[%emt 0:01:34]} e5 {[%emt 0:00:09]} 6. d5 {[%emt 0:03:37]} Ne7 {[%emt 0:00:09]} 7. Be3 {[%emt 0:01:20]} Ng6 {[%emt 0:02:20]} 8. Qd2 {[%emt 0:02:51]} Be7 {[%emt 0:01:16]} 9. O-O-O {[%emt 0:03:10]} a6 {[%emt 0:07:18]} 10. h3 {[%emt 0:06:42]} Bd7 {[%emt 0:04:38]} 11. g4 {[%emt 0:07:53]} h6 {[%emt 0:01:20]} 12. Rdg1 {[%emt 0:11:10]} Nh7 {[%emt 0:04:14]} 13. Bd1 {[%emt 0:10:28]} Ng5 {[%emt 0:03:19]} 14. Ne1 {[%emt 0:05:50]} Nh4 {[%emt 0:01:03]} 15. f3 {[%emt 0:01:33]} Nh7 {[%emt 0:04:59]} 16. Ng2 {[%emt 0:04:37]} Nf8 {[%emt 0:04:13]} 17. Nxh4 {[%emt 0:01:01]} Bxh4 {[%emt 0:00:03]} 18. Ne2 {[%emt 0:03:31]} Ng6 {[%emt 0:02:00]} 19. Ng3 {[%emt 0:02:54]} Bg5 {[%emt 0:01:13]} 20. Kb1 {[%emt 0:08:56]} Bxe3 {[%emt 0:10:53]} 21. Qxe3 {[%emt 0:00:01]} Qg5 {[%emt 0:00:33]} 22. Qf2 {[%emt 0:01:09]} Qh4 {[%emt 0:01:16]} 23. Qe3 {[%emt 0:05:29]} Nf4 {[%emt 0:00:10]} 24. Ne2 {[%emt 0:03:30]} Nxe2 {[%emt 0:07:40]} 25. Bxe2 {[%emt 0:00:12]} Qg5 {[%emt 0:01:43]} 26. Qf2 {[%emt 0:03:05]} Qf4 {[%emt 0:03:39]} 27. h4 {[%emt 0:00:27]} g6 {[%emt 0:00:51]} 28. g5 {[%emt 0:03:17]} h5 {[%emt 0:06:21]} 29. Bf1 {[%emt 0:01:08]} O-O {[%emt 0:01:52]} 30. Bh3 {[%emt 0:01:20]} Bxh3 {[%emt 0:06:43]} 31. Rxh3 {[%emt 0:01:23]} Kh7 {[%emt 0:00:03]} 32. Rh2 {[%emt 0:02:32]} f5 {[%emt 0:01:44]} 33. gxf6 {[%emt 0:00:02]} Rxf6 {[%emt 0:00:06]} 34. Rhg2 {[%emt 0:03:21]} Raf8 {[%emt 0:01:29]} 35. Qa7 {[%emt 0:02:43]} Qxf3 {[%emt 0:00:21]} 36. a3 {[%emt 0:00:35]} Qxe4 {[%emt 0:00:27]} 37. Qxb7 {[%emt 0:00:28]} Rf1+ {[%emt 0:13:08]} 38. Ka2 {[%emt 0:00:01]} Qc4+ {[%emt 0:00:08]} 39. Qb3 {[%emt 0:00:04]} Qxb3+ {[%emt 0:00:23]} 40. Kxb3 {[%emt 0:00:01]} Rxg1 {[%emt 0:01:59]} 41. Rxg1 {[%emt 0:00:02]} Rf4 {[%emt 0:00:03]} 42. Rh1 {[%emt 0:00:53]} g5 {[%emt 0:00:57]} 43. hxg5 {[%emt 0:00:07]} Kg6 {[%emt 0:00:02]} 44. Rg1 {[%emt 0:01:40]} h4 {[%emt 0:00:37]} 45. c4 {[%emt 0:00:22]} h3 {[%emt 0:00:31]} 46. Kb4 {[%emt 0:00:38]} h2 {[%emt 0:01:03]} 47. Rh1 {[%emt 0:00:13]} Rf2 {[%emt 0:00:09]} 48. b3 {[%emt 0:01:01]} e4 {[%emt 0:00:47]} 49. Kc3 {[%emt 0:00:30]} e3 {[%emt 0:00:19]} 50. Kd3 {[%emt 0:00:08]} e2 {[%emt 0:00:04]} 51. Ke3 {[%emt 0:00:09]} Rf1 {[%emt 0:00:06]} 0-1

[Event "SixDays GM March 2024"]
[Site "Budapest"]
[Date "2024.03.30"]
[Round "1.4"]
[White "Kaasen, Tor Fredrik"]
[Black "Konyves, Almos"]
[Result "1-0"]
[ECO "C97"]
[WhiteElo "2449"]
[BlackElo "2306"]
[Annotator "TA"]
[PlyCount "117"]
[EventDate "2024.03.26"]
[EventType "tourn"]
[EventCountry "HUN"]
[SourceTitle "playchess.com"]
[Source "ChessBase"]
[SourceQuality "1"]
[TimeControl "5400+30"]

{[%evp 31,117,60,78,68,79,84,83,65,84,91,97,75,80,50,53,35,43,62,56,23,63,44,74,0,0,0,0,0,0,0,0,0,0,0,18,21,31,16,24,3,0,0,12,0,110,46,150,156,148,151,214,193,206,100,234,140,147,141,142,131,129,127,216,208,251,253,318,332,438,282,676,666,628,625,632,608,921,811,1174,1054,1047,1239,1174,1174,1047,949,29987,29988]} 1. e4 {[%emt 0:00:09]} e5 {[%emt 0:00:16]} 2. Nf3 {[%emt 0:00:21]} Nc6 {[%emt 0:00:06]} 3. Bb5 {[%emt 0:00:35]} a6 {[%emt 0:00:05]} 4. Ba4 {[%emt 0:00:26]} Nf6 {[%emt 0:00:24]} 5. O-O {[%emt 0:00:33]} Be7 {[%emt 0:00:21]} 6. Re1 {[%emt 0:00:40]} b5 {[%emt 0:00:04]} 7. Bb3 {[%emt 0:00:06]} d6 {[%emt 0:00:18]} 8. c3 {[%emt 0:00:43]} O-O {[%emt 0:00:20]} 9. h3 {[%emt 0:00:32]} Na5 {[%emt 0:01:18]} 10. Bc2 {[%emt 0:00:22]} c5 {[%emt 0:00:06]} 11. d4 {[%emt 0:00:44]} Qc7 {[%emt 0:00:14]} 12. d5 {[%emt 0:02:20]} Nc4 {[%emt 0:02:11]} 13. b3 {[%emt 0:00:54] C97: Closed Ruy Lopez: Chigorin Defence: 11 d4 Qc7, sidelines.} Nb6 {[%emt 0:00:04]} 14. Be3 {[%emt 0:01:29]} a5 {[%emt 0:09:37]} 15. a4 {[%emt 0:04:29]} bxa4 $146 {[%emt 0:06:38]} ({Predecessor:} 15... b4 16. c4 Ne8 17. Nbd2 g6 18. g4 Ng7 19. Kh2 h5 20. Rg1 hxg4 21. hxg4 Nd7 22. Ng5 Qd8 23. Nh3 Nf6 24. Nf1 Nh7 25. Qd2 Bh4 26. f3 Ra7 27. Ng3 {½-½ Mekhane,A (2285)-Dhulipalla,B (2423) Avoine op 36th 2022 (7)}) 16. bxa4 {[%emt 0:00:16]} Ba6 {[%emt 0:00:07]} 17. Nfd2 {[%emt 0:08:14]} g6 {[%emt 0:13:56]} 18. Na3 {[%emt 0:02:29]} Nh5 {[%emt 0:02:42]} 19. Rb1 {[%emt 0:03:04]} Ng7 {[%emt 0:07:25]} 20. Nb5 {[%emt 0:04:53]} Qd8 {[%emt 0:01:39]} 21. f4 {[%emt 0:06:24]} Bf6 {[%emt 0:06:31]} 22. fxe5 {[%emt 0:09:51]} Bxe5 {[%emt 0:00:14]} 23. Nf3 {[%emt 0:01:14]} Bg3 {[%emt 0:02:15]} 24. Rf1 {[%emt 0:01:21]} Nc4 {[%emt 0:10:56]} 25. Bh6 {[%emt 0:02:42]} f6 {[%emt 0:06:21]} 26. Bd3 {[%emt 0:13:20]} Ne5 {[%emt 0:00:46]} 27. Be2 {[%emt 0:03:14]} ({Better is} 27. Nxe5 $16 Bxe5 28. Na3) 27... Nf7 $11 {[%emt 0:03:36]} 28. Bxg7 {[%emt 0:02:42]} Kxg7 {[%emt 0:00:04]} 29. Na3 {[%emt 0:00:18]} Bc8 {[%emt 0:13:53]} 30. Nc4 {[%emt 0:03:07]} Re8 {[%emt 0:00:46]} 31. Bd3 {[%emt 0:01:02]} Qe7 {[%emt 0:04:30]} 32. Qc2 {[%emt 0:06:25]} Ne5 {[%emt 0:04:12]} 33. Nfxe5 {[%emt 0:01:53]} Bxe5 {[%emt 0:00:08]} 34. Rb6 {[%emt 0:02:20]} Rf8 {[%emt 0:04:14]} 35. Rfb1 {[%emt 0:01:40]} Ra7 {[%emt 0:00:04]} 36. Rb8 {[%emt 0:03:00]} Qc7 {[%emt 0:00:49]} 37. Qb3 {[%emt 0:01:36]} Rf7 {[%emt 0:01:13]} (37... Bg3 $11) 38. Qb6 {[%emt 0:03:13]} (38. Nxe5 $16 fxe5 39. Kh2) 38... Qxb6 {[%emt 0:00:21]} ({Black should try} 38... Bg3 $14) 39. R1xb6 $16 {[%emt 0:00:18]} Bd7 {[%emt 0:00:36]} 40. Nxe5 {[%emt 0:01:33]} (40. Nxd6 $6 Bxa4 41. Nxf7 Bxb8 42. Rxb8 Kxf7 $14) 40... dxe5 {[%emt 0:00:30]} (40... fxe5 $16 {keeps fighting.} 41. Rxd6 Bxa4) 41. Bb5 $18 {[%emt 0:00:33]} f5 {[%emt 0:00:22]} 42. Bxd7 {[%emt 0:03:32]} (42. Kf2 $18 {is more deadly.}) 42... Rfxd7 {[%emt 0:00:06]} (42... Raxd7 $16 43. Re8 fxe4) 43. Re8 {[%emt 0:00:56]} (43. c4 $18) 43... fxe4 $16 {[%emt 0:01:03]} 44. Rxe5 {[%emt 0:00:31]} e3 {[%emt 0:00:29]} 45. c4 {[%emt 0:02:18]} (45. Rxe3 $6 Rxd5 46. Re4 Rg5 $16) 45... Re7 {[%emt 0:00:13]} 46. Rbe6 {[%emt 0:00:37]} Rf7 {[%emt 0:00:34]} (46... Rxe6 $16 {was called for.} 47. Rxe6 Rb7) 47. Rc6 {[%emt 0:00:50]} Rab7 {[%emt 0:00:44]} 48. Rxe3 {[%emt 0:00:35]} Rb4 {[%emt 0:00:07]} 49. Rxc5 {[%emt 0:00:08]} Rxa4 {[%emt 0:00:02]} 50. Rd3 {[%emt 0:00:48]} Ra1+ $2 {[%emt 0:01:14]} (50... Ra2 51. Kh2 Rff2) 51. Kh2 $18 {[%emt 0:00:02]} Ra2 {[%emt 0:00:24]} 52. d6 {[%emt 0:01:21]} Rff2 {[%emt 0:00:03]} 53. Rg3 {[%emt 0:00:51]} Rad2 {[%emt 0:00:54]} 54. Rc7+ {[%emt 0:00:10]} (54. Rxa5 Rxd6 55. Ra7+ Kh6 $16) 54... Kh6 {[%emt 0:00:15]} 55. c5 {[%emt 0:00:21]} a4 {[%emt 0:00:12]} 56. d7 {[%emt 0:01:21]} ({Not} 56. Ra7 Rc2 $16) 56... a3 {[%emt 0:00:54]} 57. c6 {[%emt 0:00:10]} ({And not} 57. Rxa3 Rxg2+ 58. Kh1 Rh2+ 59. Kg1 Rdg2+ 60. Kf1 Rb2 $11) 57... a2 {[%emt 0:00:18]} 58. Ra7 {[%emt 0:00:07]} Rf6 {[%emt 0:01:03]} 59. Rxa2 {[%emt 0:00:42]} 1-0

[Event "SixDays GM March 2024"]
[Site "Budapest"]
[Date "2024.03.30"]
[Round "1.5"]
[White "Uskov, Artem"]
[Black "Mayank Chakraborty"]
[Result "0-1"]
[ECO "A22"]
[WhiteElo "2392"]
[BlackElo "2386"]
[Annotator "RC"]
[PlyCount "136"]
[EventDate "2024.03.26"]
[EventType "tourn"]
[EventCountry "HUN"]
[SourceTitle "playchess.com"]
[Source "ChessBase"]
[SourceQuality "1"]
[TimeControl "5400+30"]

1. c4 {[%emt 0:00:03]} e5 {[%emt 0:00:16]} 2. Nc3 {[%emt 0:00:06]} Nf6 {[%emt 0:00:04]} 3. g3 {[%emt 0:00:05]} Bb4 {[%emt 0:02:21]} 4. Bg2 {[%emt 0:00:25]} O-O {[%emt 0:00:30]} 5. e4 {[%emt 0:00:36]} d6 {[%emt 0:01:09]} 6. Nge2 {[%emt 0:00:47]} Nc6 {[%emt 0:02:17]} 7. O-O {[%emt 0:00:59]} a5 {[%emt 0:05:16]} 8. d3 {[%emt 0:04:28]} h6 {[%emt 0:00:36]} 9. h3 {[%emt 0:01:47]} Bc5 {[%emt 0:07:52]} 10. Kh2 {[%emt 0:05:05]} Nd4 {[%emt 0:04:27]} 11. f4 {[%emt 0:07:44]} c6 {[%emt 0:05:13]} 12. Be3 {[%emt 0:07:53]} Nxe2 {[%emt 0:05:36]} 13. Qxe2 {[%emt 0:00:10]} Nd7 {[%emt 0:03:21]} 14. f5 {[%emt 0:03:30]} a4 {[%emt 0:04:27]} 15. Rad1 {[%emt 0:06:43]} Bd4 {[%emt 0:06:20]} 16. Qf2 {[%emt 0:10:59]} Qb6 {[%emt 0:02:35]} 17. Bxd4 {[%emt 0:00:11]} Qxd4 {[%emt 0:01:33]} 18. Qd2 {[%emt 0:01:56]} Kh7 {[%emt 0:14:30]} 19. g4 {[%emt 0:00:46]} Qb6 {[%emt 0:01:41]} 20. h4 {[%emt 0:02:45]} Rh8 {[%emt 0:10:28]} 21. g5 {[%emt 0:03:05]} Kg8 {[%emt 0:00:22]} 22. Kg3 {[%emt 0:03:40]} Kf8 {[%emt 0:01:18]} 23. Ne2 {[%emt 0:03:55]} Qa5 {[%emt 0:03:19]} 24. Qc1 {[%emt 0:01:12]} Ke8 {[%emt 0:00:52]} 25. d4 {[%emt 0:03:12]} Kd8 {[%emt 0:04:06]} 26. c5 {[%emt 0:09:11]} exd4 {[%emt 0:00:09]} 27. cxd6 {[%emt 0:00:09]} Qe5+ {[%emt 0:00:08]} 28. Qf4 {[%emt 0:00:03]} c5 {[%emt 0:00:10]} 29. Ng1 {[%emt 0:00:22]} Ra6 {[%emt 0:00:31]} 30. Nf3 {[%emt 0:02:17]} Qxf4+ {[%emt 0:00:05]} 31. Kxf4 {[%emt 0:00:04]} Rxd6 {[%emt 0:00:07]} 32. e5 {[%emt 0:00:44]} Rb6 {[%emt 0:00:11]} 33. Rd2 {[%emt 0:00:21]} hxg5+ {[%emt 0:03:02]} 34. Nxg5 {[%emt 0:04:43]} Ke7 {[%emt 0:05:10]} 35. Nf3 {[%emt 0:01:00]} Rbh6 {[%emt 0:03:47]} 36. Bh3 {[%emt 0:00:43]} g5+ {[%emt 0:01:25]} 37. Kxg5 {[%emt 0:04:17]} Nxe5 {[%emt 0:00:08]} 38. Nxe5 {[%emt 0:00:24]} f6+ {[%emt 0:00:17]} 39. Kf4 {[%emt 0:00:01]} Rxh4+ {[%emt 0:00:15]} 40. Ng4 {[%emt 0:00:07]} Rxh3 {[%emt 0:00:04]} 41. Re1+ {[%emt 0:00:12]} Kd6 {[%emt 0:01:48]} 42. Nxf6 {[%emt 0:00:14]} Rf8 {[%emt 0:01:02]} 43. Ne8+ {[%emt 0:01:21]} Kc6 {[%emt 0:00:48]} 44. Ng7 {[%emt 0:00:02]} Rf7 {[%emt 0:01:19]} 45. Ne6 {[%emt 0:00:26]} Kd6 {[%emt 0:00:29]} 46. Kg4 {[%emt 0:07:59]} Rh6 {[%emt 0:00:13]} 47. Kg5 {[%emt 0:00:34]} Rxf5+ {[%emt 0:01:31]} 48. Kxf5 {[%emt 0:00:09]} Rxe6 {[%emt 0:00:03]} 49. Red1 {[%emt 0:01:16]} a3 {[%emt 0:01:11]} 50. b3 {[%emt 0:00:48]} b5 {[%emt 0:00:22]} 51. b4 {[%emt 0:01:09]} Re1+ {[%emt 0:00:18]} 52. Kf6 {[%emt 0:00:30]} Rxd1 {[%emt 0:00:12]} 53. bxc5+ {[%emt 0:00:28]} Kxc5 {[%emt 0:00:05]} 54. Rxd1 {[%emt 0:00:07]} Bg4 {[%emt 0:00:16]} 55. Rc1+ {[%emt 0:02:13]} Kd5 {[%emt 0:00:44]} 56. Kg5 {[%emt 0:01:11]} Be2 {[%emt 0:00:05]} 57. Kf4 {[%emt 0:00:05]} Bc4 {[%emt 0:00:17]} 58. Rb1 {[%emt 0:01:39]} Kc5 {[%emt 0:00:30]} 59. Rc1 {[%emt 0:00:39]} Kb4 {[%emt 0:00:09]} 60. Ke4 {[%emt 0:00:09]} Bxa2 {[%emt 0:00:25]} 61. Kxd4 {[%emt 0:00:53]} Bb3 {[%emt 0:00:41]} 62. Rg1 {[%emt 0:02:20]} Bc2 {[%emt 0:00:46]} 63. Ra1 {[%emt 0:00:34]} Bg6 {[%emt 0:00:51]} 64. Kd5 {[%emt 0:00:32]} a2 {[%emt 0:00:34]} 65. Kc6 {[%emt 0:00:30]} Bb1 {[%emt 0:00:06]} 66. Kb6 {[%emt 0:00:08]} Ka4 {[%emt 0:00:24]} 67. Kc5 {[%emt 0:00:46]} b4 {[%emt 0:00:04]} 68. Kc4 {[%emt 0:00:09]} Ka3 {[%emt 0:00:04]} 0-1